bitfinex/quotes_SOLUSD_20240729
["timestamp","ask_amount","ask_price","bid_price","bid_amount"]
[1722296603206,1.36751728,182.87,182.74,45.17]
[1722296603404,1.26174622,182.88,182.74,45.17]
[1722296603604,1.26174622,182.88,182.77,6.1014]
[1722296603782,1.36736058,182.9,182.78,60.1104]
[1722296603987,1.36720071,182.96,182.79,0.17]
[1722296604215,1.36716303,182.95,182.79,0.17]
[1722296604385,25.88,182.94,182.79,20.17]
[1722296604585,1.36708138,182.94,182.8,45.0]
[1722296604808,1.36697229,182.96,182.82,6.1014]
[1722296605012,27.24679636,182.97,182.83,60.2804]
[1722296605314,31.3454,182.97,182.83,60.2804]
[1722296606105,25.88,182.97,182.83,60.2804]
[1722296606412,31.3454,182.97,182.83,60.2804]
[1722296606715,25.88,182.97,182.83,60.2804]
[1722296607305,45.0,182.96,182.83,60.2804]
[1722296607514,5.4647,182.99,182.84,20.0]
[1722296607713,6.83094891,183.01,182.86,6.659]
[1722296607896,6.83094891,183.01,182.87,45.17]
[1722296608485,5.4646,183.0,182.87,45.17]
[1722296608893,6.83123579,182.99,182.87,45.17]
[1722296609215,5.4644,183.0,182.87,45.17]
[1722296609516,1.36653342,183.0,182.87,45.17]
[1722296609815,71.83103342,183.0,182.87,45.17]
[1722296610400,65.0,183.0,182.87,45.17]
[1722296610593,70.4646,183.0,182.87,45.17]
[1722296610916,20.0,183.0,182.88,15.107]
[1722296611110,1.36648921,183.02,182.89,45.17]
[1722296611417,5.4632,183.05,182.9,6.2228]
[1722296611601,5.4634,183.04,182.9,6.2228]
[1722296612514,5.6336,183.03,182.9,6.2228]
[1722296612718,20.0,183.02,182.91,45.17]
[1722296613422,25.4639,183.02,182.91,45.17]
[1722296613921,1.36625043,183.09,182.93,20.0]
[1722296614109,1.3658934,183.08,182.94,45.17]
[1722296614296,5.4615,183.1,182.96,16.3262]
[1722296614498,1.36589223,183.14,182.97,45.17]
[1722296614996,5.4612,183.11,182.97,45.17]
[1722296615201,5.4608,183.13,182.98,26.2228]
[1722296615411,5.4609,183.12,182.99,45.17]
[1722296615597,5.4602,183.15,183.01,16.3262]
[1722296615805,1.36543707,183.15,183.03,6.2228]
[1722296616005,5.4599,183.16,183.03,6.2228]
[1722296616211,1.36535701,183.16,183.03,6.2228]
[1722296617106,1.36539027,183.15,183.03,6.2228]
[1722296617498,6.82539027,183.15,183.03,6.2228]
[1722296618010,5.4603,183.14,183.03,6.2228]
[1722296618213,5.4599,183.16,183.03,6.2228]
[1722296618414,51.82536211,183.15,183.03,6.2228]
[1722296618800,5.4609,183.12,183.03,6.2228]
[1722296619116,25.4605,183.14,183.03,6.2228]
[1722296619893,20.0,183.14,183.03,6.2228]
[1722296620106,20.0,183.15,183.04,1.09228938]
[1722296620316,1.365175,183.19,183.05,0.17]
[1722296620922,1.3651742,183.22,183.05,0.17]
[1722296621103,5.4591,183.18,183.05,0.17]
[1722296621302,1.36517621,183.17,183.05,0.17]
[1722296621502,5.4594,183.17,183.05,0.17]
[1722296621719,1.36517593,183.16,183.05,0.17]
[1722296621940,6.82487593,183.16,183.05,0.17]
[1722296622099,1.36517593,183.16,183.04,45.0]
[1722296622423,21.36528307,183.22,183.04,45.0]
[1722296622608,45.17,183.21,183.04,45.0]
[1722296622929,21.36526004,183.2,183.04,45.0]
[1722296623132,45.17,183.19,183.03,6.3928]
[1722296623305,5.4607,183.13,183.03,6.3928]
[1722296623507,1.36537149,183.12,183.03,6.3928]
[1722296623704,20.0,183.14,183.03,6.3928]
[1722296624011,1.3653703,183.13,183.03,6.3928]
[1722296624721,1.36537075,183.17,183.03,6.3928]
[1722296625017,5.46,183.15,183.03,6.3928]
[1722296625225,20.0,183.14,183.03,6.3928]
[1722296625924,20.0,183.15,183.03,6.3928]
[1722296627329,20.0,183.16,183.04,45.17]
[1722296628930,1.36526718,183.15,183.04,0.17]
[1722296629103,1.36526718,183.15,183.03,6.2228]
[1722296629104,46.36526718,183.15,183.03,6.2228]
[1722296629303,20.0,183.14,183.03,6.2228]
[1722296629709,20.0,183.14,183.04,45.0]
[1722296629910,20.0,183.15,183.04,45.0]
[1722296630206,1.36526828,183.14,183.03,6.2228]
[1722296632029,20.0,183.15,183.03,6.2228]
[1722296632230,20.0,183.15,183.04,45.17]
[1722296632430,20.0,183.16,183.04,45.17]
[1722296633429,1.36527041,183.15,183.04,45.17]
[1722296633925,25.4598,183.16,183.04,45.17]
[1722296634230,20.0,183.16,183.04,45.17]
[1722296634532,1.36526927,183.15,183.04,45.17]
[1722296634912,1.36526927,183.15,183.03,6.2228]
[1722296635121,46.36526927,183.15,183.03,6.2228]
[1722296635324,20.0,183.14,183.03,6.2228]
[1722296635625,1.36551486,183.13,183.03,6.2228]
[1722296635806,46.36551486,183.13,183.03,6.2228]
[1722296636012,20.0,183.12,183.03,6.2228]
[1722296636215,1.36562467,183.11,183.03,6.2228]
[1722296636412,5.4621,183.08,183.03,6.2228]
[1722296636626,1.36589595,183.08,183.03,6.2228]
[1722296637013,5.6318,183.09,183.03,6.2228]
[1722296637329,65.0,183.08,183.03,6.2228]
[1722296637905,20.0,183.08,183.03,6.2228]
[1722296638128,20.0,183.1,183.03,6.2228]
[1722296638305,1.36562731,183.09,183.03,6.2228]
[1722296639125,20.0,183.1,183.03,6.2228]
[1722296639322,20.0,183.11,183.03,6.2228]
[1722296639508,1.36563405,183.12,183.03,6.2228]
[1722296639709,45.0,183.12,183.03,6.2228]
[1722296639910,20.0,183.11,183.03,6.2228]
[1722296640615,25.4606,183.13,183.03,6.2228]
[1722296641736,20.0,183.13,183.03,6.2228]
[1722296641937,5.4591,183.18,183.05,15.2665]
[1722296642244,1.36506523,183.17,183.06,6.4615]
[1722296642532,1.36526215,183.2,183.06,6.4615]
[1722296643110,1.36526215,183.2,183.07,45.17]
[1722296643407,5.4592,183.18,183.07,45.17]
[1722296643612,1.36509954,183.17,183.06,6.4615]
[1722296643807,5.4593,183.18,183.06,6.4615]
[1722296644015,5.459,183.19,183.06,6.4615]
[1722296644209,25.4591,183.18,183.07,45.0]
[1722296644905,20.0,183.18,183.07,45.0]
[1722296645112,5.4588,183.19,183.08,0.17]
[1722296645612,25.83,183.21,183.08,0.17]
[1722296646209,5.4588,183.19,183.08,0.17]
[1722296646610,20.0,183.18,183.08,0.17]
[1722296647136,26.82410291,183.18,183.08,0.17]
[1722296647337,26.82410291,183.18,183.07,45.0]
[1722296647338,1.36501024,183.17,183.07,45.0]
[1722296647522,5.4597,183.16,183.07,45.0]
[1722296647826,5.4603,183.14,183.06,6.4615]
[1722296648004,1.36527052,183.14,183.06,6.4615]
[1722296648207,20.0,183.15,183.06,6.4615]
[1722296648428,1.36525763,183.14,183.06,6.4615]
[1722296648634,20.0,183.15,183.06,6.4615]
[1722296648837,21.36542119,183.17,183.06,6.4615]
[1722296649042,45.17,183.16,183.06,6.4615]
[1722296649211,21.36552597,183.15,183.06,6.4615]
[1722296649415,5.4609,183.12,183.06,6.4615]
[1722296649719,21.36553324,183.11,183.06,6.4615]
[1722296650038,1.36553324,183.11,183.06,6.4615]
[1722296650708,1.53568729,183.14,183.06,6.4615]
[1722296650904,5.4614,183.11,183.06,6.4615]
[1722296651334,5.4609,183.12,183.06,6.4615]
[1722296651531,50.4605,183.14,183.06,6.4615]
[1722296651736,20.0,183.13,183.06,6.4615]
[1722296652309,25.4606,183.13,183.06,6.4615]
[1722296653017,20.0,183.13,183.06,6.4615]
[1722296654720,25.4606,183.13,183.06,6.4615]
[1722296654909,20.0,183.13,183.06,6.4615]
[1722296655222,21.36546858,183.14,183.06,6.4615]
[1722296655836,5.461,183.12,183.06,6.4615]
[1722296656028,20.0,183.11,183.06,6.4615]
[1722296656230,6.82696905,183.1,183.06,6.4615]
[1722296656427,1.36546905,183.1,183.06,6.4615]
[1722296656742,6.82716905,183.1,183.06,6.4615]
[1722296657045,5.4621,183.08,183.05,15.2665]
[1722296657222,6.82840354,183.07,183.01,22.7127]
[1722296657427,5.4627,183.06,183.01,22.7127]
[1722296657842,1.36600635,183.05,183.01,22.7127]
[1722296658024,6.82910635,183.05,183.01,22.7127]
[1722296658335,5.4627,183.06,183.01,22.7127]
[1722296658735,25.4629,183.05,183.01,22.7127]
[1722296659523,20.0,183.05,183.01,22.7127]
[1722296659733,1.36603648,183.04,183.01,22.7127]
[1722296660040,6.82933648,183.04,183.01,22.7127]
[1722296660231,20.0,183.03,182.97,21.7949]
[1722296660437,5.4642,183.01,182.97,21.7949]
[1722296660632,1.36635311,183.0,182.97,21.7949]
[1722296660937,21.36635311,183.0,182.97,21.7949]
[1722296661538,20.0,183.0,182.97,21.7949]
[1722296661739,20.0,183.02,182.97,21.7949]
[1722296662945,20.0,183.04,182.97,21.7949]
[1722296663651,5.4624,183.07,182.97,21.7949]
[1722296663942,25.83,183.09,182.97,21.7949]
[1722296663943,5.463,183.05,182.97,21.7949]
[1722296664146,1.36612005,183.04,182.97,21.7949]
[1722296664444,25.83,183.06,182.97,6.3348]
[1722296664645,1.36629162,183.05,182.97,6.3348]
[1722296664956,1.36629162,183.04,182.97,6.3348]
[1722296665173,25.83,183.03,182.93,22.074]
[1722296665445,66.53645063,183.02,182.93,22.074]
[1722296665652,1.36645049,183.01,182.93,22.074]
[1722296666624,5.4651,182.98,182.93,22.074]
[1722296666846,1.36658182,182.97,182.88,21.9588]
[1722296667032,66.36658182,182.97,182.88,21.9588]
[1722296667353,5.4659,182.95,182.88,21.9588]
[1722296667527,0.17,182.96,182.88,21.9588]
[1722296667528,20.0,182.94,182.88,21.9588]
[1722296668146,20.0,182.95,182.88,21.9588]
[1722296668354,5.4655,182.97,182.88,21.9588]
[1722296668639,20.0,182.96,182.88,21.9588]
[1722296668846,21.3666011,182.96,182.88,21.9588]
[1722296669027,26.8323011,182.96,182.88,21.9588]
[1722296669228,5.4663,182.94,182.88,21.9588]
[1722296669419,1.36681864,182.93,182.88,21.9588]
[1722296669623,5.4659,182.95,182.88,21.9588]
[1722296669820,20.0,182.94,182.88,21.9588]
[1722296670244,21.36681756,182.94,182.88,21.9588]
[1722296670635,20.0,182.94,182.88,21.9588]
[1722296670950,20.0,182.96,182.88,21.9588]
[1722296671143,25.4654,182.97,182.88,21.9588]
[1722296671341,5.4658,182.96,182.88,21.9588]
[1722296671536,25.4659,182.95,182.88,21.9588]
[1722296671752,20.0,182.94,182.88,21.9588]
[1722296672454,20.0,182.96,182.88,21.9588]
[1722296672923,26.83227073,182.96,182.88,21.9588]
[1722296673628,25.4657,182.96,182.88,21.9588]
[1722296675252,20.0,182.96,182.88,21.9588]
[1722296675446,25.83,183.03,182.88,21.9588]
[1722296675655,5.4647,182.99,182.88,23.05197805]
[1722296676041,5.465,182.98,182.88,21.9588]
[1722296676239,5.4648,182.99,182.88,21.9588]
[1722296676753,20.0,182.98,182.88,21.9588]
[1722296677153,25.4651,182.98,182.88,21.9588]
[1722296677457,20.0,182.98,182.89,45.17]
[1722296677629,5.465,182.99,182.89,45.17]
[1722296677836,25.4652,182.98,182.89,45.17]
[1722296678036,25.4652,182.98,182.89,45.0]
[1722296678037,5.4652,182.98,182.89,45.0]
[1722296678238,20.0,182.97,182.89,45.0]
[1722296678644,21.36647592,182.97,182.88,21.9588]
[1722296678851,20.0,182.96,182.88,21.9588]
[1722296679048,21.36662046,183.01,182.88,21.9588]
[1722296679254,45.17,183.0,182.88,21.9588]
[1722296679638,20.0,182.99,182.88,21.9588]
[1722296680853,1.36648562,182.98,182.88,21.9588]
[1722296681154,5.4657,182.96,182.88,21.9588]
[1722296681458,5.4654,182.97,182.88,21.9588]
[1722296681627,20.0,182.96,182.88,21.9588]
[1722296681833,20.0,182.96,182.89,45.0]
[1722296682760,5.465,182.98,182.89,45.0]
[1722296683057,20.0,182.97,182.89,45.0]
[1722296683758,25.4653,182.97,182.89,45.0]
[1722296684848,20.0,182.97,182.88,21.9588]
[1722296685054,5.4663,182.94,182.88,21.9588]
[1722296685547,1.3667107,182.93,182.88,21.9588]
[1722296685755,5.4669,182.92,182.88,21.9588]
[1722296687361,5.4666,182.93,182.88,21.9588]
[1722296687863,20.0,182.92,182.88,21.9588]
[1722296688668,21.36691703,182.96,182.88,21.9588]
[1722296688835,5.4668,182.92,182.88,21.9588]
[1722296689040,20.0,182.91,182.88,21.9588]
[1722296691260,5.4663,182.94,182.88,21.9588]
[1722296691445,5.466,182.95,182.88,21.9588]
[1722296691652,20.0,182.94,182.88,21.9588]
[1722296695445,21.3667162,182.98,182.88,21.9588]
[1722296695871,21.36671475,182.98,182.88,21.9588]
[1722296696252,20.0,182.98,182.88,21.9588]
[1722296697089,47.19670525,182.98,182.88,21.9588]
[1722296697449,13.6643,182.96,182.88,21.9588]
[1722296697657,5.4668,182.93,182.88,21.9588]
[1722296697847,5.4669,182.92,182.88,21.9588]
[1722296698165,5.4665,182.94,182.88,21.9588]
[1722296698369,20.0,182.93,182.88,21.9588]
[1722296698549,5.4658,182.96,182.88,21.9588]
[1722296698876,20.0,182.95,182.88,21.9588]
[1722296699060,20.0,182.96,182.88,21.9588]
[1722296700366,25.4657,182.96,182.88,21.9588]
[1722296700567,20.0,182.96,182.88,21.9588]
[1722296700771,5.4665,182.93,182.88,21.9588]
[1722296702173,27.19686077,182.92,182.88,21.9588]
[1722296702372,47.19686077,182.92,182.82,21.6974]
[1722296702870,45.17,182.91,182.82,21.6974]
[1722296703067,21.36727714,182.9,182.82,21.6974]
[1722296703269,27.19727657,182.89,182.82,21.6974]
[1722296703581,20.0,182.88,182.82,21.6974]
[1722296703756,1.36738463,182.87,182.82,21.6974]
[1722296703954,25.83,182.86,182.82,6.0821]
[1722296704169,5.4695,182.83,182.78,15.3011]
[1722296704376,1.36766271,182.82,182.78,15.3011]
[1722296704684,20.0,182.88,182.78,15.3011]
[1722296704855,1.36734442,182.87,182.78,15.3011]
[1722296705062,6.83574442,182.87,182.78,15.3011]
[1722296705265,20.0,182.86,182.78,15.3011]
[1722296705570,5.4705,182.8,182.77,6.3726]
[1722296706078,5.4702,182.81,182.77,6.3726]
[1722296706272,20.0,182.8,182.77,6.3726]
[1722296706479,5.4695,182.83,182.77,6.3726]
[1722296706775,20.0,182.82,182.77,6.3726]
[1722296707181,27.19755363,182.89,182.77,6.3726]
[1722296707377,20.0,182.84,182.77,6.3726]
[1722296707760,51.83556214,182.88,182.77,6.3726]
[1722296707972,20.0,182.87,182.77,6.3726]
[1722296708563,25.83,182.89,182.78,60.4171]
[1722296709066,5.4676,182.9,182.78,60.4171]
[1722296709283,5.4679,182.89,182.78,60.4171]
[1722296709588,6.83538228,182.88,182.78,60.4171]
[1722296709962,5.4677,182.89,182.78,60.4171]
[1722296710160,20.0,182.88,182.78,60.4171]
[1722296711087,5.4677,182.89,182.78,60.4171]
[1722296711391,20.0,182.88,182.78,60.4171]
[1722296713671,5.467,182.92,182.8,36.6024]
[1722296713870,16.5787,182.99,182.83,16.6024]
[1722296714066,16.5787,182.99,182.84,45.0]
[1722296714067,5.4656,182.97,182.84,45.0]
[1722296714276,5.4657,182.96,182.85,1.09347471]
[1722296714457,25.83,182.98,182.85,1.09347471]
[1722296714458,5.466,182.95,182.85,1.09347471]
[1722296714670,5.466,182.95,182.84,45.0]
[1722296715082,5.466,182.95,182.83,16.6024]
[1722296715083,1.36685834,182.94,182.83,16.6024]
[1722296715266,5.4672,182.91,182.83,16.6024]
[1722296715582,5.4668,182.93,182.83,16.6024]
[1722296715774,20.0,182.92,182.83,16.6024]
[1722296716484,20.0,182.94,182.83,16.6024]
[1722296716694,20.0,182.94,182.84,45.0]
[1722296717586,20.0,182.94,182.84,65.0]
[1722296717787,20.0,182.94,182.84,45.0]
[1722296718088,20.0,182.94,182.85,6.1947]
[1722296718271,20.0,182.95,182.85,6.1947]
[1722296718472,5.4657,182.96,182.85,6.1947]
[1722296719793,20.0,182.95,182.85,6.1947]
[1722296720194,21.36675802,182.95,182.85,6.0247]
[1722296720370,5.4671,182.92,182.85,6.0247]
[1722296720563,5.4666,182.93,182.85,6.0247]
[1722296720788,20.0,182.92,182.85,6.0247]
[1722296720988,21.36692898,182.92,182.85,6.0247]
[1722296721192,26.83382898,182.92,182.85,6.0247]
[1722296721890,20.0,182.92,182.85,6.0247]
[1722296722094,20.0,182.94,182.85,6.0247]
[1722296723062,47.19672803,182.95,182.85,6.0247]
[1722296723567,45.83,182.95,182.85,6.0247]
[1722296724068,51.2962,182.95,182.85,6.0247]
[1722296725069,5.4653,182.98,182.86,15.9244]
[1722296725290,25.83,183.02,182.87,46.26331514]
[1722296725489,5.4644,183.01,182.87,46.26331514]
[1722296725704,1.36647476,183.01,182.88,6.3087]
[1722296725993,5.4641,183.01,182.89,45.17]
[1722296726198,5.4641,183.01,182.9,15.9244]
[1722296726569,257.9,183.04,182.9,15.9244]
[1722296726570,257.9,183.04,182.9,35.9244]
[1722296726880,5.4641,183.01,182.91,45.17]
[1722296727763,20.0,183.0,182.91,45.17]
[1722296727993,20.0,183.0,182.92,6.4391]
[1722296728195,20.0,183.02,182.92,6.4391]
[1722296728699,25.4639,183.02,182.92,6.4391]
[1722296729881,20.0,183.02,182.93,45.17]
[1722296730287,20.0,183.03,182.93,45.17]
[1722296730483,1.36615884,183.08,182.94,15.6035]
[1722296730694,5.4632,183.05,182.94,15.6035]
[1722296730865,5.4635,183.03,182.94,15.6035]
[1722296731192,1.36615077,183.02,182.94,15.6035]
[1722296731794,21.36618507,183.05,182.94,15.6035]
[1722296731995,1.3661859,183.04,182.94,15.6035]
[1722296732498,5.464,183.02,182.94,15.6035]
[1722296732689,25.4632,183.05,182.94,15.6035]
[1722296733072,5.4633,183.04,182.94,15.6035]
[1722296733274,12.93,183.01,182.94,15.6035]
[1722296733580,12.93,183.0,182.94,15.6035]
[1722296733782,5.4633,183.04,182.94,15.6035]
[1722296733783,5.4633,183.04,182.94,28.5335]
[1722296733983,12.93,183.01,182.94,28.5335]
[1722296735978,25.463,183.05,182.94,28.5335]
[1722296736199,12.93,183.01,182.94,28.5335]
[1722296736390,12.93,183.01,182.95,64.3967]
[1722296736694,12.93,183.05,182.98,12.93]
[1722296736887,12.93,183.05,182.97,27.943]
[1722296737099,19.6522,183.14,182.97,15.013]
[1722296737100,12.93,183.04,182.97,15.013]
[1722296737392,12.93,183.03,182.97,15.013]
[1722296738291,5.4627,183.06,182.95,6.4667]
[1722296738292,12.93,182.98,182.95,6.4667]
[1722296738594,51.72,183.06,182.95,6.4667]
[1722296738797,12.93,182.98,182.95,6.4667]
[1722296738983,12.93,182.96,182.95,6.4667]
[1722296739182,12.93,182.96,182.93,15.9242]
[1722296739499,12.93,182.94,182.93,15.9242]
[1722296740293,5.4648,182.99,182.93,15.9242]
[1722296740500,32.93,182.98,182.93,15.9242]
[1722296740896,12.93,182.97,182.93,15.9242]
[1722296741279,25.4651,182.98,182.93,15.9242]
[1722296741695,5.4651,182.98,182.93,15.9242]
[1722296741873,5.4648,182.99,182.93,15.9242]
[1722296742079,20.0,182.98,182.93,15.9242]
[1722296742282,20.0,183.0,182.93,15.9242]
[1722296742588,21.36625027,183.0,182.93,15.9242]
[1722296742983,1.36625027,183.0,182.93,15.9242]
[1722296743711,5.4654,182.97,182.93,15.9242]
[1722296744389,1.36625027,183.0,182.93,15.9242]
[1722296745185,5.4653,182.98,182.93,15.9242]
[1722296745487,26.8319252,182.97,182.93,15.9242]
[1722296745679,6.8319252,182.97,182.93,15.9242]
[1722296746081,5.4656,182.96,182.93,15.9242]
[1722296746478,5.466,182.95,182.93,15.9242]
[1722296747093,5.4657,182.96,182.93,15.9242]
[1722296747296,5.4653,182.97,182.93,15.9242]
[1722296747494,21.36660571,182.96,182.93,15.9242]
[1722296747698,20.0,182.96,182.93,15.9242]
[1722296747898,5.4647,183.0,182.93,15.9242]
[1722296748202,5.4642,183.01,182.93,15.9242]
[1722296748400,5.4636,183.03,182.93,15.9242]
[1722296748585,1.36613929,183.02,182.94,45.0]
[1722296748792,1.36613929,183.02,182.93,15.9242]
[1722296749620,5.4645,183.0,182.93,15.9242]
[1722296749788,1.36632095,182.99,182.93,15.9242]
[1722296749987,39.5275,183.05,182.93,15.9242]
[1722296749988,1.36634108,183.04,182.93,15.9242]
[1722296750285,5.4644,183.0,182.93,15.9242]
[1722296750502,5.4642,183.01,182.93,15.9242]
[1722296750699,20.0,183.0,182.93,15.9242]
[1722296750898,1.36632132,182.99,182.93,15.9242]
[1722296751196,25.4645,183.0,182.93,15.9242]
[1722296751380,6.83102224,182.99,182.93,15.9242]
[1722296751583,20.0,182.98,182.93,15.9242]
[1722296752186,21.36639779,182.99,182.93,15.9242]
[1722296752392,1.36649581,182.98,182.93,15.9242]
[1722296752601,25.87,183.0,182.93,15.9242]
[1722296752817,25.87,182.97,182.9,6.3005]
[1722296753021,25.87,182.94,182.86,6.548]
[1722296753314,5.4674,182.9,182.86,6.548]
[1722296753481,6.83497868,182.89,182.86,6.548]
[1722296753686,5.4678,182.89,182.86,6.548]
[1722296754408,15.03437673,182.92,182.79,22.531]
[1722296754592,5.4689,182.86,182.79,22.531]
[1722296754798,21.36743819,182.85,182.79,22.531]
[1722296755492,21.36744005,182.85,182.79,22.531]
[1722296755692,20.0,182.86,182.79,22.531]
[1722296756210,25.4682,182.88,182.79,22.531]
[1722296756516,1.36736174,182.87,182.79,22.531]
[1722296757000,20.0,182.88,182.79,22.531]
[1722296757695,20.0,182.89,182.79,22.531]
[1722296758317,25.4678,182.89,182.79,22.531]
[1722296758817,1.36724366,182.88,182.79,22.531]
[1722296759015,21.36724462,182.92,182.79,22.531]
[1722296759320,5.4684,182.87,182.79,22.531]
[1722296759497,1.36731564,182.86,182.79,22.531]
[1722296759699,1.36736943,182.9,182.79,22.531]
[1722296759908,5.4692,182.84,182.79,22.531]
[1722296760616,5.4693,182.84,182.79,22.531]
[1722296760915,5.4688,182.86,182.79,22.531]
[1722296761113,20.0,182.85,182.79,22.531]
[1722296762018,25.4689,182.85,182.79,22.531]
[1722296762202,5.4693,182.84,182.79,22.531]
[1722296762516,20.0,182.85,182.79,22.531]
[1722296762697,5.4684,182.87,182.79,22.531]
[1722296762900,70.87,182.91,182.79,22.531]
[1722296763091,20.0,182.9,182.79,42.531]
[1722296763289,5.4677,182.89,182.79,22.531]
[1722296763909,5.4677,182.89,182.8,45.17]
[1722296764815,39.5363,182.94,182.8,45.17]
[1722296765014,13.6663,182.94,182.81,20.0]
[1722296765315,5.4671,182.91,182.82,45.17]
[1722296765521,5.4676,182.9,182.82,45.17]
[1722296766109,1.3671155,182.89,182.79,48.401]
[1722296766313,5.468,182.88,182.8,45.17]
[1722296766915,5.4677,182.89,182.8,45.17]
[1722296768233,5.4677,182.89,182.8,65.17]
[1722296768523,5.4674,182.91,182.8,66.26368925]
[1722296768726,5.4679,182.89,182.8,65.17]
[1722296769017,21.36711173,182.9,182.79,22.531]
[1722296769220,5.468,182.89,182.79,22.531]
[1722296769400,20.0,182.88,182.79,22.531]
[1722296769599,25.4681,182.88,182.79,22.531]
[1722296769821,5.4692,182.85,182.79,22.531]
[1722296770002,5.4689,182.86,182.79,22.531]
[1722296770208,25.469,182.85,182.79,22.531]
[1722296771032,5.4692,182.84,182.79,22.531]
[1722296771322,5.4698,182.82,182.79,22.531]
[1722296771519,6.83746873,182.82,182.79,22.531]
[1722296771831,5.4698,182.82,182.79,22.531]
[1722296772153,25.4691,182.85,182.79,22.531]
[1722296772617,5.4693,182.84,182.79,22.531]
[1722296772926,20.0,182.83,182.79,22.531]
[1722296773225,5.4686,182.87,182.79,22.531]
[1722296773529,5.4681,182.88,182.8,45.17]
[1722296773691,5.4678,182.89,182.8,45.17]
[1722296774206,5.4684,182.87,182.8,0.17]
[1722296774412,5.4684,182.87,182.79,22.531]
[1722296774917,5.468,182.89,182.8,65.17]
[1722296775125,5.4668,182.93,182.83,20.0]
[1722296775419,13.6648,182.96,182.84,22.3043]
[1722296775616,1.36704208,182.95,182.84,22.3043]
[1722296775828,5.4684,182.87,182.84,22.3043]
[1722296776324,5.4687,182.86,182.84,22.3043]
[1722296776508,13.6687,182.9,182.84,22.3043]
[1722296776710,1.36733974,182.89,182.84,22.3043]
[1722296776911,65.0,182.89,182.84,22.3043]
[1722296777333,5.4686,182.86,182.84,22.3043]
[1722296777537,5.4689,182.85,182.84,22.3043]
[1722296777908,25.4689,182.85,182.84,22.3043]
[1722296778122,5.47,182.82,182.76,22.7439]
[1722296778328,5.4699,182.82,182.76,22.7439]
[1722296778532,5.4695,182.83,182.76,22.7439]
[1722296778908,5.4689,182.85,182.76,22.7439]
[1722296779116,20.0,182.84,182.76,22.7439]
[1722296779615,5.4688,182.86,182.76,22.7439]
[1722296779819,25.469,182.85,182.76,22.7439]
[1722296780019,5.4693,182.84,182.76,22.7439]
[1722296780223,5.4693,182.84,182.72,28.99001085]
[1722296780224,1.26174622,182.97,182.82,26.6506]
[1722296780418,5.4659,182.96,182.83,62.90242218]
[1722296780733,1.26174622,182.97,182.83,62.90242218]
[1722296781043,1.26174622,182.97,182.84,20.0]
[1722296781341,5.4663,182.94,182.85,1.09349068]
[1722296781509,5.4663,182.94,182.86,1.09349068]
[1722296782222,5.4666,182.93,182.86,1.09349068]
[1722296782431,5.4669,182.92,182.83,61.8089]
[1722296782630,1.26174622,182.97,182.83,16.8089]
[1722296782631,5.4675,182.9,182.83,16.8089]
[1722296782830,5.4671,182.92,182.84,46.09349683]
[1722296783034,20.0,182.91,182.84,45.0]
[1722296784651,21.3669096,182.91,182.83,16.8089]
[1722296784934,1.3669096,182.91,182.83,16.6389]